fUSD/lending_fUSD_20240217
["ID","MTS","AMOUNT","RATE_DAILY","PERIOD"]
[314265365,1708128673434,-891.34,0.0005315,60]
[314265366,1708128673444,-622.64,0.0005315,60]
[314265367,1708128673454,-3200.63,0.0005315,60]
[314265368,1708128673463,-500.0,0.0005315,60]
[314265369,1708128673473,-3120.9,0.0005315,60]
[314265370,1708128673482,-1144.64,0.0005315,60]
[314265371,1708128673492,-518.28,0.0005315,60]
[314265372,1708128673503,-604.05,0.0005315,60]
[314265373,1708128673513,-500.0,0.0005315,60]
[314265374,1708128673523,-544.3,0.0005315,60]
[314265375,1708128673533,-500.0,0.0005315,60]
[314265376,1708128673543,-500.0,0.0005315,60]
[314265377,1708128673555,-557.8,0.0005315,60]
[314265378,1708128673565,-4774.97,0.0005315,60]
[314265379,1708128673575,-1520.33,0.0005315,60]
[314265380,1708128673586,-847.85,0.0005315,60]
[314265381,1708128673598,-554.99,0.0005315,60]
[314265382,1708128673608,-1770.09,0.0005315,60]
[314265383,1708128673618,-504.22,0.0005315,60]
[314265384,1708128673628,-510.83,0.0005315,60]
[314265385,1708128673638,-500.0,0.0005315,60]
[314265386,1708128673647,-500.0,0.0005315,60]
[314265387,1708128673657,-929.54,0.0005315,60]
[314265388,1708128673670,-500.0,0.0005315,60]
[314265389,1708128673679,-500.0,0.0005315,60]
[314265390,1708128673688,-1915.59,0.0005315,60]
[314265391,1708128673697,-1207.5,0.0005315,14]
[314265392,1708128673706,-1080.07,0.0005315,60]
[314265393,1708128673717,-456.97,0.0005315,60]
[314265394,1708128673726,-500.0,0.0005315,60]
[314265395,1708128673736,-1574.44,0.0005315,60]
[314265396,1708128673746,-500.0,0.0005315,60]
[314265397,1708128673755,-500.0,0.0005315,60]
[314265398,1708128673764,-771.67,0.0005315,60]
[314265399,1708128673773,-702.82,0.0005315,60]
[314265400,1708128673782,-873.36,0.0005315,60]
[314265401,1708128673791,-521.9420013,0.0005315,60]
[314265402,1708128673800,-2083.77,0.0005315,60]
[314265403,1708128673809,-12341.22,0.0005315,60]
[314265404,1708128673818,-500.0,0.0005315,60]
[314265405,1708128673827,-1134.85,0.0005315,60]
[314265406,1708128673836,-545.22,0.0005315,60]
[314265407,1708128673845,-500.0,0.0005315,60]
[314265408,1708128673854,-671.61,0.0005315,60]
[314265409,1708128673864,-500.0,0.0005315,60]
[314265410,1708128673873,-500.0,0.0005315,60]
[314265411,1708128673884,-152.66873982,0.0005316,56]
[314265412,1708128673893,-150.39718411,0.00053166,67]
[314265413,1708128673903,-1999.999999,0.000533,120]
[314265414,1708128673913,-10000.0,0.000533,90]
[314265415,1708128673922,-72087.69340158,0.000533,4]
[314265416,1708128673931,-598.97,0.000533,120]
[314265417,1708128673940,-1000.0,0.00053333,4]
[314265418,1708128673949,-25000.0,0.000534,120]
[314265419,1708128673958,-626.9,0.00053424,60]
[314265420,1708128673967,-564.94,0.00053424,60]
[314265421,1708128673976,-612.77,0.00053424,60]
[314265422,1708128673985,-500.0,0.00053424,2]
[314265423,1708128673994,-526.2,0.00053424,60]
[314265424,1708128674003,-500.0,0.00053424,60]
[314265425,1708128674012,-519.54,0.00053424,2]
[314265426,1708128674021,-1158.66,0.00053424,60]
[314265427,1708128674031,-1028.04,0.00053424,2]
[314265428,1708128674040,-500.0,0.00053424,60]
[314265429,1708128674049,-500.0,0.00053424,60]
[314265430,1708128674059,-5089.08,0.00053424,60]
[314265431,1708128674068,-706.11,0.00053424,60]
[314265432,1708128674077,-500.0,0.00053424,60]
[314265433,1708128674086,-1139.87,0.00053424,60]
[314265434,1708128674095,-500.0,0.00053424,60]
[314265435,1708128674104,-500.0,0.00053424,60]
[314265436,1708128674113,-500.0,0.00053424,60]
[314265437,1708128674123,-536.33,0.00053424,60]
[314265438,1708128674133,-500.0,0.00053424,60]
[314265439,1708128674143,-500.0,0.00053424,60]
[314265440,1708128674152,-1383.87,0.00053424,60]
[314265441,1708128674161,-500.0,0.00053424,60]
[314265442,1708128674171,-788.32,0.00053424,60]
[314265443,1708128674180,-500.0,0.00053424,60]
[314265444,1708128674189,-500.0,0.00053424,60]
[314265445,1708128674199,-891.34,0.00053424,60]
[314265446,1708128674208,-622.64,0.00053424,60]
[314265447,1708128674217,-3200.63,0.00053424,60]
[314265448,1708128674227,-500.0,0.00053424,60]
[314265449,1708128674236,-3120.9,0.00053424,60]
[314265450,1708128674246,-1144.64,0.00053424,60]
[314265451,1708128674256,-518.28,0.00053424,60]
[314265452,1708128674265,-604.05,0.00053424,60]
[314265453,1708128674275,-500.0,0.00053424,60]
[314265454,1708128674284,-544.3,0.00053424,60]
[314265455,1708128674294,-500.0,0.00053424,60]
[314265456,1708128674303,-500.0,0.00053424,60]
[314265457,1708128674313,-557.8,0.00053424,60]
[314265458,1708128674322,-4774.97,0.00053424,60]
[314265459,1708128674331,-1520.33,0.00053424,60]
[314265460,1708128674341,-847.85,0.00053424,60]
[314265461,1708128674351,-554.99,0.00053424,60]
[314265462,1708128674360,-1770.09,0.00053424,60]
[314265463,1708128674369,-504.22,0.00053424,60]
[314265464,1708128674379,-510.83,0.00053424,60]
[314265465,1708128674388,-500.0,0.00053424,60]
[314265466,1708128674398,-500.0,0.00053424,60]
[314265467,1708128674408,-929.54,0.00053424,60]
[314265468,1708128674418,-500.0,0.00053424,60]
[314265469,1708128674427,-500.0,0.00053424,60]
[314265470,1708128674437,-1915.59,0.00053424,60]
[314265471,1708128674447,-1207.5,0.00053424,14]
[314265472,1708128674456,-1080.07,0.00053424,60]
[314265473,1708128674466,-500.0,0.00053424,60]
[314265474,1708128674475,-1574.44,0.00053424,60]
[314265475,1708128674485,-500.0,0.00053424,60]
[314265476,1708128674494,-500.0,0.00053424,60]
[314265477,1708128674503,-771.67,0.00053424,60]
[314265478,1708128674618,-702.82,0.00053424,60]
[314265479,1708128674641,-873.36,0.00053424,60]
[314265480,1708128674651,-2083.77,0.00053424,60]
[314265481,1708128674663,-12341.22,0.00053424,60]
[314265482,1708128674673,-500.0,0.00053424,60]
[314265483,1708128674682,-1134.85,0.00053424,60]
[314265484,1708128674692,-545.22,0.00053424,60]
[314265485,1708128674701,-500.0,0.00053424,60]
[314265486,1708128674711,-671.61,0.00053424,60]
[314265487,1708128674720,-500.0,0.00053424,60]
[314265488,1708128674731,-500.0,0.00053424,60]
[314265489,1708128674740,-151.021799,0.00053448,47]
[314265490,1708128674749,-180.72,0.000535,30]
[314265491,1708128674758,-1342.15601815,0.00053685,14]
[314265492,1708128674767,-626.9,0.00053698,60]
[314265493,1708128674776,-564.94,0.00053698,60]
[314265494,1708128674785,-612.77,0.00053698,60]
[314265495,1708128674794,-500.0,0.00053698,2]
[314265496,1708128674803,-526.2,0.00053698,60]
[314265497,1708128674812,-500.0,0.00053698,60]
[314265498,1708128674821,-519.54,0.00053698,2]
[314265499,1708128674830,-1158.66,0.00053698,60]
[314265500,1708128674839,-1028.04,0.00053698,2]
[314265501,1708128674848,-500.0,0.00053698,60]
[314265502,1708128674857,-500.0,0.00053698,60]
[314265503,1708128674867,-5089.08,0.00053698,60]
[314265504,1708128674878,-706.11,0.00053698,60]
[314265505,1708128674887,-500.0,0.00053698,60]
[314265506,1708128674896,-1139.87,0.00053698,60]
[314265507,1708128674905,-500.0,0.00053698,60]
[314265508,1708128674914,-500.0,0.00053698,60]
[314265509,1708128674923,-500.0,0.00053698,60]
[314265510,1708128674933,-536.33,0.00053698,60]
[314265511,1708128674942,-500.0,0.00053698,60]
[314265512,1708128674951,-500.0,0.00053698,60]
[314265513,1708128674960,-1383.87,0.00053698,60]
[314265514,1708128674970,-544.34,0.00053698,60]
[314265515,1708128674978,-788.32,0.00053698,60]
[314265516,1708128674987,-500.0,0.00053698,60]
[314265517,1708128674996,-500.0,0.00053698,60]
[314265518,1708128675005,-891.34,0.00053698,60]
[314265519,1708128675014,-622.64,0.00053698,60]
[314265520,1708128675024,-3200.63,0.00053698,60]
[314265521,1708128675033,-500.0,0.00053698,60]
[314265522,1708128675042,-3120.9,0.00053698,60]
[314265523,1708128675051,-1144.64,0.00053698,60]
[314265524,1708128675060,-518.28,0.00053698,60]
[314265525,1708128675069,-604.05,0.00053698,60]
[314265526,1708128675078,-500.0,0.00053698,60]
[314265527,1708128675087,-544.3,0.00053698,60]
[314265528,1708128675096,-245.79,0.00053698,60]
[314265529,1708128675105,-500.0,0.00053698,60]
[314265530,1708128675114,-557.8,0.00053698,60]
[314265531,1708128675123,-4774.97,0.00053698,60]
[314265532,1708128675132,-1520.33,0.00053698,60]
[314265533,1708128675142,-847.85,0.00053698,60]
[314265534,1708128675151,-554.99,0.00053698,60]
[314265535,1708128675161,-1770.09,0.00053698,60]
[314265536,1708128675171,-504.22,0.00053698,60]
[314265537,1708128675180,-510.83,0.00053698,60]
[314265538,1708128675189,-500.0,0.00053698,60]
[314265539,1708128675198,-500.0,0.00053698,60]
[314265540,1708128675207,-929.54,0.00053698,60]
[314265541,1708128675217,-617.65663651,0.00053698,60]
[314265542,1708128675227,-500.0,0.00053698,60]
[314265543,1708128675236,-1915.59,0.00053698,60]
[314265544,1708128675245,-1207.5,0.00053698,14]
[314265545,1708128675254,-1080.07,0.00053698,60]
[314265546,1708128675265,-500.0,0.00053698,60]
[314265547,1708128675275,-1574.44,0.00053698,60]
[314265548,1708128675284,-500.0,0.00053698,60]
[314265549,1708128675294,-364.77,0.00053698,60]
[314265550,1708128675304,-771.67,0.00053698,60]
[314265551,1708128675314,-702.82,0.00053698,60]
[314265552,1708128675323,-873.36,0.00053698,60]
[314265553,1708128675334,-2083.77,0.00053698,60]
[314265554,1708128675344,-12341.22,0.00053698,60]
[314265555,1708128675353,-347.92,0.00053698,60]
[314265556,1708128675363,-1134.85,0.00053698,60]
[314265557,1708128675373,-545.22,0.00053698,60]
[314265558,1708128675382,-500.0,0.00053698,60]
[314265559,1708128675391,-671.61,0.00053698,60]
[314265560,1708128675401,-286.49,0.00053698,60]
[314265561,1708128675411,-500.0,0.00053698,60]
[314265562,1708128675420,-20305.42904711,0.00053838,30]
[314265563,1708128675429,-205.0,0.00053873,45]
[314265564,1708128675439,-25000.0,0.000539,120]
[314265565,1708128675449,-626.9,0.00053972,60]
[314265566,1708128675458,-564.94,0.00053972,60]
[314265567,1708128675468,-612.77,0.00053972,60]
[314265568,1708128675477,-500.0,0.00053972,2]
[314265569,1708128675487,-526.2,0.00053972,60]
[314265570,1708128675497,-500.0,0.00053972,60]
[314265571,1708128675507,-519.54,0.00053972,2]
[314265572,1708128675517,-1158.66,0.00053972,60]
[314265573,1708128675527,-1028.04,0.00053972,2]
[314265574,1708128675536,-500.0,0.00053972,60]
[314265575,1708128675545,-500.0,0.00053972,60]
[314265576,1708128675554,-5089.08,0.00053972,60]
[314265577,1708128675563,-706.11,0.00053972,60]
[314265578,1708128675572,-500.0,0.00053972,60]
[314265579,1708128675581,-1139.87,0.00053972,60]
[314265580,1708128675591,-500.0,0.00053972,60]
[314265581,1708128675601,-500.0,0.00053972,60]
[314265582,1708128675609,-500.0,0.00053972,60]
[314265583,1708128675619,-536.33,0.00053972,60]
[314265584,1708128675630,-500.0,0.00053972,60]
[314265585,1708128675639,-415.22534201,0.00053972,60]
[314265586,1708128675648,-1383.87,0.00053972,60]
[314265587,1708128675657,-788.32,0.00053972,60]
[314265588,1708128675670,-500.0,0.00053972,60]
[314265589,1708128675679,-500.0,0.00053972,60]
[314265590,1708128675689,-891.34,0.00053972,60]
[314265591,1708128675699,-622.64,0.00053972,60]
[314265592,1708128675711,-3200.63,0.00053972,60]
[314265593,1708128675720,-3120.9,0.00053972,60]
[314265594,1708128675730,-500.0,0.00053972,60]
[314265595,1708128675739,-1144.64,0.00053972,60]
[314265596,1708128675749,-518.28,0.00053972,60]
[314265597,1708128675759,-604.05,0.00053972,60]
[314265598,1708128675769,-500.0,0.00053972,60]
[314265599,1708128675780,-544.3,0.00053972,60]
[314265600,1708128675790,-500.0,0.00053972,60]
[314265601,1708128675800,-557.8,0.00053972,60]
[314265602,1708128675810,-4774.97,0.00053972,60]
[314265603,1708128675820,-1520.33,0.00053972,60]
[314265604,1708128675830,-847.85,0.00053972,60]
[314265605,1708128675840,-554.99,0.00053972,60]
[314265606,1708128675851,-1770.09,0.00053972,60]
[314265607,1708128675861,-504.22,0.00053972,60]
[314265608,1708128675870,-510.83,0.00053972,60]
[314265609,1708128675880,-565.15,0.00053972,60]
[314265610,1708128675890,-500.0,0.00053972,60]
[314265611,1708128675900,-929.54,0.00053972,60]
[314265612,1708128675910,-613.14087466,0.00053972,60]
[314265613,1708128675919,-1915.59,0.00053972,60]
[314265614,1708128675928,-1207.5,0.00053972,14]
[314265615,1708128675937,-1080.07,0.00053972,60]
[314265616,1708128675947,-500.0,0.00053972,60]
[314265617,1708128675959,-1574.44,0.00053972,60]
[314265618,1708128675968,-500.0,0.00053972,60]
[314265619,1708128675977,-771.67,0.00053972,60]
[314265620,1708128675986,-702.82,0.00053972,60]
[314265621,1708128675995,-873.36,0.00053972,60]
[314265622,1708128676003,-2083.77,0.00053972,60]
[314265623,1708128676012,-12341.22,0.00053972,60]
[314265624,1708128676022,-1134.85,0.00053972,60]
[314265625,1708128676030,-545.22,0.00053972,60]
[314265626,1708128676039,-500.0,0.00053972,60]
[314265627,1708128676048,-671.61,0.00053972,60]
[314265628,1708128676057,-500.0,0.00053972,60]
[314265629,1708128676066,-248.16852788,0.00053993,13]
[314265630,1708128676076,-207.21148723,0.00053993,13]
[314265631,1708128676086,-100000.0,0.00054,44]
[314265632,1708128676096,-25000.0,0.00054,7]
[314265633,1708128676105,-150.0,0.00054,20]
[314265634,1708128676115,-300.0,0.00054,54]
[314265635,1708128676124,-186440.30969771,0.00054,60]
[314265636,1708128676133,-724.82248173,0.00054,10]
[314265637,1708128676142,-21225.04675878,0.00054,120]
[314265638,1708128676317,-20445.20216387,0.00054,120]
[314265639,1708128676327,-302.0,0.00054007,4]
[314265640,1708128676336,-800.0,0.00054063,30]
[314265641,1708128676346,-150.39718411,0.00054166,71]
[314265642,1708128676355,-626.9,0.00054246,60]
[314265643,1708128676364,-564.94,0.00054246,60]
[314265644,1708128676373,-612.77,0.00054246,60]
[314265645,1708128676382,-500.0,0.00054246,2]
[314265646,1708128676392,-526.2,0.00054246,60]
[314265647,1708128676401,-500.0,0.00054246,60]
[314265648,1708128676411,-519.54,0.00054246,2]
[314265649,1708128676420,-1158.66,0.00054246,60]
[314265650,1708128676429,-1028.04,0.00054246,2]
[314265651,1708128676438,-500.0,0.00054246,60]
[314265652,1708128676447,-634.91,0.00054246,60]
[314265653,1708128676457,-5089.08,0.00054246,60]
[314265654,1708128676466,-706.11,0.00054246,60]
[314265655,1708128676475,-500.0,0.00054246,60]
[314265656,1708128676485,-1139.87,0.00054246,60]
[314265657,1708128676494,-582.80512208,0.00054246,60]
[314265658,1708128676503,-354.4724299,0.00054246,60]
[314265659,1708128676512,-500.0,0.00054246,60]
[314265660,1708128676522,-536.33,0.00054246,60]
[314265661,1708128676531,-500.0,0.00054246,60]
[314265662,1708128676540,-1383.87,0.00054246,60]
[314265663,1708128676549,-788.32,0.00054246,60]
[314265664,1708128676559,-521.57845809,0.00054246,60]
[314265665,1708128676568,-647.97,0.00054246,60]
[314265666,1708128676577,-891.34,0.00054246,60]
[314265667,1708128676586,-622.64,0.00054246,60]
[314265668,1708128676595,-3200.63,0.00054246,60]
[314265669,1708128676604,-3120.9,0.00054246,60]
[314265670,1708128676613,-500.0,0.00054246,60]
[314265671,1708128676622,-1144.64,0.00054246,60]
[314265672,1708128676632,-518.28,0.00054246,60]
[314265673,1708128676641,-604.05,0.00054246,60]
[314265674,1708128676650,-500.0,0.00054246,60]
[314265675,1708128676659,-544.3,0.00054246,60]
[314265676,1708128676672,-500.0,0.00054246,60]
[314265677,1708128676682,-557.8,0.00054246,60]
[314265678,1708128676703,-4774.97,0.00054246,60]
[314265679,1708128676713,-1520.33,0.00054246,60]
[314265680,1708128676723,-847.85,0.00054246,60]
[314265681,1708128676732,-554.99,0.00054246,60]
[314265682,1708128676743,-1770.09,0.00054246,60]
[314265683,1708128676753,-504.22,0.00054246,60]
[314265684,1708128676762,-510.83,0.00054246,60]
[314265685,1708128676773,-500.0,0.00054246,60]
[314265686,1708128676782,-929.54,0.00054246,60]
[314265687,1708128676792,-1915.59,0.00054246,60]
[314265688,1708128676801,-1207.5,0.00054246,14]
[314265689,1708128676810,-1080.07,0.00054246,60]
[314265690,1708128676820,-500.0,0.00054246,60]
[314265691,1708128676830,-1574.44,0.00054246,60]
[314265692,1708128676839,-500.0,0.00054246,60]
[314265693,1708128676849,-771.67,0.00054246,60]
[314265694,1708128676857,-702.82,0.00054246,60]
[314265695,1708128676866,-873.36,0.00054246,60]
[314265696,1708128676876,-2083.77,0.00054246,60]
[314265697,1708128676885,-12341.22,0.00054246,60]
[314265698,1708128676895,-1134.85,0.00054246,60]
[314265699,1708128676904,-545.22,0.00054246,60]
[314265700,1708128676914,-427.72,0.00054246,60]
[314265701,1708128676923,-671.61,0.00054246,60]
[314265702,1708128676932,-500.0,0.00054246,60]
[314265703,1708128676941,-21397.40924087,0.0005425,30]
[314265704,1708128676950,-152.16,0.00054338,2]
[314265705,1708128676960,-25000.0,0.000544,120]
[314265706,1708128676971,-151.021799,0.00054448,51]
[314265707,1708128676980,-18273.9138226,0.000545,120]
[314265708,1708128676990,-5000.0,0.000545,64]
[314265709,1708128676999,-3000.0,0.000545,50]
[314265710,1708128677009,-5741.937491,0.000545,98]
[314265711,1708128677018,-1736.07852,0.000545,32]
[314265712,1708128677027,-150.0,0.000545,39]
[314265713,1708128677036,-176.592031,0.000545,39]
[314265714,1708128677045,-1839.725644,0.000545,39]
[314265715,1708128677054,-1989.725645,0.000545,39]
[314265716,1708128677063,-698.0574,0.000545,30]
[314265717,1708128677072,-698.0574,0.000545,30]
[314265718,1708128677081,-1641.2914,0.000545,30]
[314265719,1708128677273,-1641.2914,0.000545,30]
[314265720,1708128677282,-500.0,0.0005452,120]
[314265721,1708128677291,-206.24894851,0.0005452,120]
[314265722,1708128677301,-626.9,0.0005452,120]
[314265723,1708128677310,-564.94,0.0005452,120]
[314265724,1708128677319,-612.77,0.0005452,120]
[314265725,1708128677329,-500.0,0.0005452,2]
[314265726,1708128677338,-526.2,0.0005452,120]
[314265727,1708128677347,-500.0,0.0005452,120]
[314265728,1708128677360,-519.54,0.0005452,2]
[314265729,1708128677369,-1158.66,0.0005452,120]
[314265730,1708128677378,-1028.04,0.0005452,2]
[314265731,1708128677388,-182.45321628,0.0005452,120]
[314265732,1708128677397,-5089.08,0.0005452,120]
[314265733,1708128677406,-706.11,0.0005452,120]
[314265734,1708128677417,-500.0,0.0005452,120]
[314265735,1708128677426,-1139.87,0.0005452,120]
[314265736,1708128677435,-500.0,0.0005452,120]
[314265737,1708128677445,-536.33,0.0005452,120]
[314265738,1708128677455,-500.0,0.0005452,120]
[314265739,1708128677465,-1383.87,0.0005452,120]
[314265740,1708128677474,-788.32,0.0005452,120]
[314265741,1708128677483,-891.34,0.0005452,120]
[314265742,1708128677493,-622.64,0.0005452,120]
[314265743,1708128677502,-3200.63,0.0005452,120]
[314265744,1708128677512,-3120.9,0.0005452,120]
[314265745,1708128677521,-500.0,0.0005452,120]
[314265746,1708128677530,-1144.64,0.0005452,120]
[314265747,1708128677540,-518.28,0.0005452,120]
[314265748,1708128677549,-604.05,0.0005452,120]
[314265749,1708128677558,-500.0,0.0005452,120]
[314265750,1708128677567,-544.3,0.0005452,120]
[314265751,1708128677576,-500.0,0.0005452,120]
[314265752,1708128677585,-557.8,0.0005452,120]
[314265753,1708128677595,-4774.97,0.0005452,120]
[314265754,1708128677604,-1520.33,0.0005452,120]
[314265755,1708128677613,-847.85,0.0005452,120]
[314265756,1708128677623,-554.99,0.0005452,120]
[314265757,1708128677635,-1770.09,0.0005452,120]
[314265758,1708128677645,-504.22,0.0005452,120]
[314265759,1708128677656,-510.83,0.0005452,120]
[314265760,1708128677667,-500.0,0.0005452,120]
[314265761,1708128677676,-929.54,0.0005452,120]
[314265762,1708128677686,-1915.59,0.0005452,120]
[314265763,1708128677695,-1207.5,0.0005452,14]
[314265764,1708128677704,-1080.07,0.0005452,120]
[314265765,1708128677714,-500.0,0.0005452,120]
[314265766,1708128677723,-1574.44,0.0005452,120]
[314265767,1708128677733,-500.0,0.0005452,120]
[314265768,1708128677743,-771.67,0.0005452,120]
[314265769,1708128677752,-702.82,0.0005452,120]
[314265770,1708128677762,-873.36,0.0005452,120]
[314265771,1708128677771,-2083.77,0.0005452,120]
[314265772,1708128677781,-12341.22,0.0005452,120]
[314265773,1708128677792,-1134.85,0.0005452,120]
[314265774,1708128677802,-545.22,0.0005452,120]
[314265775,1708128677811,-671.61,0.0005452,120]
[314265776,1708128677821,-500.0,0.0005452,120]
[314265777,1708128677832,-790.58,0.00054546,2]
[314265778,1708128677842,-405.38,0.00054658,30]
[314265779,1708128677851,-915.62,0.00054658,30]
[314265780,1708128677860,-405.38,0.00054658,30]
[314265781,1708128677869,-915.62,0.00054658,30]
[314265782,1708128677879,-915.62,0.00054658,30]
[314265783,1708128677889,-405.38,0.00054658,30]
[314265784,1708128677899,-405.38,0.00054658,30]
[314265785,1708128677909,-915.62,0.00054658,30]
[314265786,1708128677918,-915.62,0.00054658,30]
[314265787,1708128677928,-405.38,0.00054658,30]
[314265788,1708128677937,-405.38,0.00054658,30]
[314265789,1708128677946,-915.62,0.00054658,30]
[314265790,1708128677956,-907.5,0.00054658,30]
[314265791,1708128677965,-405.38,0.00054658,30]
[314265792,1708128677973,-805.99,0.00054658,30]
[314265793,1708128677982,-734.85938762,0.000547,2]
[314265794,1708128677992,-1936.135,0.00054728,120]
[314265795,1708128678001,-646.813,0.00054728,120]
[314265796,1708128678010,-2871.0,0.00054728,120]
[314265797,1708128678019,-170.94811091,0.00054788,58]
[314265798,1708128678028,-500.0,0.00054794,120]
[314265799,1708128678037,-500.0,0.00054794,30]
[314265800,1708128678046,-1000.0,0.00054794,20]
[314265801,1708128678055,-1000.0,0.00054794,20]
[314265802,1708128678063,-1000.0,0.00054794,20]
[314265803,1708128678072,-1000.0,0.00054794,20]
[314265804,1708128678082,-1000.0,0.00054794,20]
[314265805,1708128678091,-1000.0,0.00054794,20]
[314265806,1708128678101,-1000.0,0.00054794,20]
[314265807,1708128678110,-1000.0,0.00054794,20]
[314265808,1708128678121,-1000.0,0.00054794,20]
[314265809,1708128678131,-1000.0,0.00054794,20]
[314265810,1708128678141,-1000.0,0.00054794,20]
[314265811,1708128678150,-900.13227108,0.00054794,20]
[314265812,1708128678159,-626.9,0.00054794,120]
[314265813,1708128678168,-564.94,0.00054794,120]
[314265814,1708128678178,-1000.0,0.00054794,120]
[314265815,1708128678187,-1000.0,0.00054794,120]
[314265816,1708128678197,-1000.0,0.00054794,120]
[314265817,1708128678206,-1000.0,0.00054794,120]
[314265818,1708128678215,-1000.0,0.00054794,120]
[314265819,1708128678224,-1000.0,0.00054794,120]
[314265820,1708128678234,-1000.0,0.00054794,120]
[314265821,1708128678243,-821.9,0.00054794,120]
[314265822,1708128678252,-500.0,0.00054794,120]
[314265823,1708128678261,-500.0,0.00054794,120]
[314265824,1708128678270,-500.0,0.00054794,120]
[314265825,1708128678279,-500.0,0.00054794,120]
[314265826,1708128678289,-500.0,0.00054794,120]
[314265827,1708128678298,-500.0,0.00054794,120]
[314265828,1708128678308,-500.0,0.00054794,120]
[314265829,1708128678317,-500.0,0.00054794,120]
[314265830,1708128678326,-500.0,0.00054794,120]
[314265831,1708128678336,-500.0,0.00054794,120]
[314265832,1708128678345,-500.0,0.00054794,120]
[314265833,1708128678355,-500.0,0.00054794,120]
[314265834,1708128678364,-500.0,0.00054794,120]
[314265835,1708128678373,-500.0,0.00054794,120]
[314265836,1708128678382,-531.31028031,0.00054794,120]
[314265837,1708128678391,-612.77,0.00054794,120]
[314265838,1708128678401,-500.0,0.00054794,2]
[314265839,1708128678410,-526.2,0.00054794,120]
[314265840,1708128678420,-500.0,0.00054794,120]
[314265841,1708128678430,-519.54,0.00054794,2]
[314265842,1708128678439,-1158.66,0.00054794,120]
[314265843,1708128678449,-1028.04,0.00054794,2]
[314265844,1708128678469,-5089.08,0.00054794,120]
[314265845,1708128678479,-706.11,0.00054794,120]
[314265846,1708128678488,-436.53809064,0.00054794,120]
[314265847,1708128678498,-1139.87,0.00054794,120]
[314265848,1708128678507,-500.0,0.00054794,120]
[314265849,1708128678518,-536.33,0.00054794,120]
[314265850,1708128678528,-500.0,0.00054794,120]
[314265851,1708128678538,-1383.87,0.00054794,120]
[314265852,1708128678548,-788.32,0.00054794,120]
[314265853,1708128678558,-891.34,0.00054794,120]
[314265854,1708128678567,-2628.44,0.00054794,120]
[314265855,1708128678576,-2628.44,0.00054794,120]
[314265856,1708128678585,-2628.44,0.00054794,120]
[314265857,1708128678595,-2628.44,0.00054794,120]
[314265858,1708128678605,-2628.44,0.00054794,120]
[314265859,1708128678614,-2628.44,0.00054794,120]
[314265860,1708128678624,-2628.44,0.00054794,120]
[314265861,1708128678634,-2628.44,0.00054794,120]
[314265862,1708128678643,-2628.44,0.00054794,120]
[314265863,1708128678655,-2628.44,0.00054794,120]
[314265864,1708128678665,-2628.44,0.00054794,120]